fUSD/lending_fUSD_20251225
["ID","MTS","AMOUNT","RATE_DAILY","PERIOD"]
[399736484,1766645441518,-610.34,0.00013698,2]
[399736485,1766645441539,-610.34,0.00013698,2]
[399736486,1766645441550,-610.34,0.00013698,2]
[399736487,1766645441560,-610.34,0.00013698,2]
[399736488,1766645441570,-610.34,0.00013698,2]
[399736489,1766645441581,-610.34,0.00013698,2]
[399736490,1766645441591,-610.34,0.00013698,2]
[399736491,1766645441602,-500.0,0.00013698,2]
[399736492,1766645441612,-500.0,0.00013698,2]
[399736493,1766645441622,-500.0,0.00013698,2]
[399736494,1766645441633,-500.0,0.00013698,2]
[399736495,1766645441643,-500.0,0.00013698,2]
[399736496,1766645441654,-500.0,0.00013698,2]
[399736497,1766645441664,-500.0,0.00013698,2]
[399736498,1766645441675,-500.0,0.00013698,2]
[399736499,1766645441685,-500.0,0.00013698,2]
[399736500,1766645441700,-500.0,0.00013698,2]
[399736501,1766645441711,-765.26,0.00013698,2]
[399736502,1766645441721,-500.0,0.00013698,2]
[399736503,1766645441733,-765.26,0.00013698,2]
[399736504,1766645441744,-765.26,0.00013698,2]
[399736505,1766645441754,-765.26,0.00013698,2]
[399736506,1766645441765,-765.26,0.00013698,2]
[399736507,1766645441775,-765.26,0.00013698,2]
[399736508,1766645441786,-321.45865313,0.00013698,2]
[399736509,1766645441796,-500.0,0.00013698,2]
[399736510,1766645441807,-500.0,0.00013698,2]
[399736511,1766645441817,-500.0,0.00013698,2]
[399736512,1766645441828,-500.0,0.00013698,2]
[399736513,1766645441838,-500.0,0.00013698,2]
[399736514,1766645441848,-500.0,0.00013698,2]
[399736515,1766645441858,-500.0,0.00013698,2]
[399736516,1766645441867,-382.48973277,0.00013698,2]
[399736517,1766645441878,-500.0,0.00013698,2]
[399736518,1766645441889,-524.26514358,0.00013698,2]
[399736519,1766645441898,-500.0,0.00013698,2]
[399736520,1766645441912,-500.0,0.00013698,2]
[399736521,1766645441922,-500.0,0.00013698,2]
[399736522,1766645441932,-500.0,0.00013698,2]
[399736523,1766645441942,-500.0,0.00013698,2]
[399736524,1766645441953,-500.0,0.00013698,2]
[399736525,1766645441963,-500.0,0.00013698,2]
[399736526,1766645441973,-500.0,0.00013698,2]
[399736527,1766645441983,-500.0,0.00013698,2]
[399736528,1766645441993,-500.0,0.00013698,2]
[399736529,1766645442003,-407.20578613,0.00013698,2]
[399736530,1766645442014,-500.0,0.00013698,2]
[399736531,1766645442024,-500.0,0.00013698,2]
[399736532,1766645442035,-500.0,0.00013698,2]
[399736533,1766645442045,-500.0,0.00013698,2]
[399736534,1766645442055,-589.40226539,0.00013698,2]
[399736535,1766645442066,-613.33,0.00013699,2]
[399736536,1766645442076,-500.0,0.00013699,2]
[399736537,1766645442086,-500.0,0.00013699,2]
[399736538,1766645442096,-500.0,0.00013699,2]
[399736539,1766645442106,-500.0,0.00013699,2]
[399736540,1766645442116,-500.0,0.00013699,2]
[399736541,1766645442127,-500.0,0.00013699,2]
[399736542,1766645442137,-500.0,0.00013699,2]
[399736543,1766645442147,-500.0,0.00013699,2]
[399736544,1766645442157,-500.0,0.00013699,2]
[399736545,1766645442168,-500.0,0.00013699,2]
[399736546,1766645442178,-218.37293,0.00013699,2]
[399736547,1766645442189,-500.0,0.00013699,2]
[399736548,1766645442199,-500.0,0.00013699,2]
[399736549,1766645442209,-500.0,0.00013699,2]
[399736550,1766645442219,-4097.4,0.000137,2]
[399736551,1766645442230,-4097.4,0.000137,2]
[399736552,1766645442240,-4097.4,0.000137,2]
[399736553,1766645442250,-4097.4,0.000137,2]
[399736554,1766645442260,-4097.4,0.000137,2]
[399736555,1766645442275,-215.0738,0.00013743,2]
[399736556,1766645442284,-200.0,0.00013744,2]
[399736557,1766645442295,-200.0,0.00013744,2]
[399736558,1766645442304,-500.0,0.00013744,2]
[399736559,1766645442314,-1787.56,0.00013824,2]
[399736560,1766645442324,-200.0,0.00013925,2]
[399736561,1766645442334,-1787.56,0.00014098,2]
[399736562,1766645442344,-398.62325351,0.00014176,2]
[399736563,1766645442354,-6079.86,0.0001419,2]
[399736564,1766645442366,-736.0,0.00014237,2]
[399736565,1766645442376,-58303.00077057,0.00014237,2]
[399736566,1766645442385,-500.0,0.00014238,2]
[399736567,1766645442396,-500.0,0.00014238,2]
[399736569,1766645442405,-521.79,0.00014238,2]
[399736570,1766645442415,-500.0,0.00014238,2]
[399736571,1766645442426,-500.0,0.00014238,2]
[399736572,1766645442435,-610.34,0.00014238,2]
[399736573,1766645442445,-500.0,0.00014238,2]
[399736574,1766645442454,-500.0,0.00014238,2]
[399736575,1766645442469,-1600.0,0.00014278,2]
[399736576,1766645442479,-200.0,0.00014292,2]
[399736577,1766645442490,-200.0,0.00014292,2]
[399736578,1766645442500,-500.0,0.00014292,2]
[399736579,1766645442510,-823.0,0.00014351,2]
[399736580,1766645442520,-3292.0,0.00014353,2]
[399736581,1766645442531,-1787.56,0.00014372,2]
[399736582,1766645442541,-708.1,0.00014385,2]
[399736583,1766645442551,-3292.0,0.00014387,2]
[399736584,1766645442560,-404.15664721,0.00014496,2]
[399736585,1766645442571,-10000.0,0.0001451,2]
[399736586,1766645442582,-174.76631411,0.00014538,2]
[399736587,1766645442593,-500.0,0.00014538,2]
[399736588,1766645442603,-695.14,0.00014538,2]
[399736589,1766645442613,-500.0,0.00014538,2]
[399736591,1766645442624,-500.0,0.00014538,2]
[399736593,1766645442635,-500.0,0.00014538,2]
[399736594,1766645442645,-500.0,0.00014538,2]
[399736595,1766645442656,-500.0,0.00014538,2]
[399736596,1766645442669,-500.0,0.00014538,2]
[399736597,1766645442680,-600.0,0.00014555,2]
[399736598,1766645442693,-600.0,0.00014555,2]
[399736599,1766645442703,-1787.56,0.00014645,2]
[399736600,1766645442715,-298.26089446,0.00014706,2]
[399736601,1766645442725,-346.92554585,0.00014706,2]
[399736602,1766645442735,-200.0,0.0001484,2]
[399736603,1766645442746,-200.0,0.0001484,2]
[399736604,1766645442756,-500.0,0.0001484,2]
[399736605,1766645442766,-58303.00077057,0.00014903,2]
[399736606,1766645442777,-1787.56,0.00014919,2]
[399736607,1766645442787,-825.23,0.00014935,2]
[399736608,1766645442798,-500.0,0.00014935,2]
[399736609,1766645442808,-765.26,0.00014935,2]
[399736610,1766645442818,-190.0,0.00015,2]
[399736611,1766645442829,-600.0,0.00015184,2]
[399736612,1766645442839,-600.0,0.00015184,2]
[399736613,1766645442849,-1787.56,0.00015193,2]
[399736614,1766645442859,-150.0,0.00015288,2]
[399736615,1766645442871,-207.98052348,0.00015288,2]
[399736616,1766645442880,-150.0,0.00015288,2]
[399736617,1766645442891,-172.12623375,0.00015288,2]
[399736618,1766645442902,-150.03943629,0.00015288,2]
[399736619,1766645442912,-150.0,0.00015288,2]
[399736620,1766645442923,-150.0,0.00015288,2]
[399736621,1766645442932,-299.35190735,0.00015288,2]
[399736622,1766645442942,-150.0,0.00015288,2]
[399736623,1766645442952,-150.0,0.00015288,2]
[399736624,1766645442962,-150.0,0.00015288,2]
[399736625,1766645442973,-150.0,0.00015288,2]
[399736626,1766645442983,-150.0,0.00015288,2]
[399736627,1766645442993,-150.0,0.00015288,2]
[399736628,1766645443003,-191.79160584,0.00015288,2]
[399736629,1766645443013,-150.0,0.00015288,2]
[399736630,1766645443023,-207.98052348,0.00015305,2]
[399736631,1766645443033,-172.12623375,0.00015305,2]
[399736632,1766645443053,-150.03943629,0.00015305,2]
[399736634,1766645443069,-299.35190735,0.00015305,2]
[399736635,1766645443079,-150.0,0.00015306,2]
[399736636,1766645443089,-150.0,0.00015312,2]
[399736637,1766645443100,-207.98052348,0.00015322,2]
[399736638,1766645443110,-172.12623375,0.00015322,2]
[399736639,1766645443120,-150.03943629,0.00015322,2]
[399736640,1766645443129,-299.35190735,0.00015322,2]
[399736641,1766645443139,-150.0,0.00015324,2]
[399736642,1766645443150,-150.0,0.0001533,2]
[399736644,1766645443161,-500.0,0.00015335,2]
[399736646,1766645443171,-1109.00444245,0.00015335,2]
[399736648,1766645443181,-150.0,0.00015336,2]
[399736649,1766645443191,-207.98052348,0.00015339,2]
[399736650,1766645443201,-172.12623375,0.00015339,2]
[399736651,1766645443211,-150.03943629,0.00015339,2]
[399736652,1766645443221,-299.35190735,0.00015339,2]
[399736653,1766645443233,-150.0,0.00015342,2]
[399736654,1766645443243,-150.0,0.00015353,2]
[399736655,1766645443253,-207.98052348,0.00015356,2]
[399736656,1766645443263,-172.12623375,0.00015356,2]
[399736657,1766645443274,-150.03943629,0.00015356,2]
[399736658,1766645443285,-299.35190735,0.00015356,2]
[399736659,1766645443295,-150.0,0.00015358,2]
[399736660,1766645443306,-150.0,0.00015359,2]
[399736661,1766645443317,-150.0,0.00015361,2]
[399736662,1766645443327,-500.0,0.0001537,2]
[399736663,1766645443338,-150.0,0.00015373,2]
[399736664,1766645443348,-207.98052348,0.00015373,2]
[399736665,1766645443359,-172.12623375,0.00015373,2]
[399736666,1766645443368,-150.03943629,0.00015373,2]
[399736667,1766645443379,-299.35190735,0.00015373,2]
[399736668,1766645443389,-150.0,0.00015377,2]
[399736669,1766645443399,-150.0,0.00015379,2]
[399736670,1766645443409,-150.0,0.00015383,2]
[399736671,1766645443419,-200.0,0.00015388,2]
[399736672,1766645443430,-200.0,0.00015388,2]
[399736673,1766645443439,-500.0,0.00015388,2]
[399736674,1766645443449,-207.98052348,0.00015391,2]
[399736675,1766645443458,-172.12623375,0.00015391,2]
[399736676,1766645443468,-150.03943629,0.00015391,2]
[399736677,1766645443482,-299.35190735,0.00015391,2]
[399736678,1766645443492,-150.0,0.00015397,2]
[399736679,1766645443502,-150.0,0.00015407,2]
[399736680,1766645443512,-207.98052348,0.00015408,2]
[399736681,1766645443523,-172.12623375,0.00015408,2]
[399736682,1766645443533,-150.03943629,0.00015408,2]
[399736683,1766645443543,-299.35190735,0.00015408,2]
[399736684,1766645443556,-150.0,0.00015415,2]
[399736685,1766645443567,-150.0,0.00015416,2]
[399736686,1766645443583,-150.0,0.00015418,2]
[399736687,1766645443594,-207.98052348,0.00015425,2]
[399736688,1766645443604,-172.12623375,0.00015425,2]
[399736689,1766645443614,-150.03943629,0.00015425,2]
[399736690,1766645443625,-299.35190735,0.00015425,2]
[399736691,1766645443635,-150.0,0.00015429,2]
[399736692,1766645443646,-150.0,0.00015431,2]
[399736693,1766645443657,-150.0,0.00015434,2]
[399736694,1766645443667,-207.98052348,0.00015442,2]
[399736695,1766645443677,-172.12623375,0.00015442,2]
[399736696,1766645443687,-150.03943629,0.00015442,2]
[399736697,1766645443699,-299.35190735,0.00015442,2]
[399736698,1766645443710,-150.0,0.00015452,2]
[399736699,1766645443720,-150.0,0.00015455,2]
[399736700,1766645443732,-150.0,0.00015458,2]
[399736701,1766645443743,-207.98052348,0.00015459,2]
[399736702,1766645443753,-172.12623375,0.00015459,2]
[399736703,1766645443764,-150.03943629,0.00015459,2]
[399736704,1766645443774,-299.35190735,0.00015459,2]
[399736705,1766645443785,-150.0,0.00015466,2]
[399736706,1766645443795,-1787.56,0.00015467,2]
[399736707,1766645443805,-150.0,0.0001547,2]
[399736708,1766645443815,-207.98052348,0.00015476,2]
[399736709,1766645443826,-172.12623375,0.00015476,2]
[399736710,1766645443836,-150.03943629,0.00015476,2]
[399736711,1766645443846,-299.35190735,0.00015476,2]
[399736712,1766645443856,-150.0,0.00015476,2]
[399736713,1766645443866,-150.0,0.00015479,2]
[399736714,1766645443879,-150.0,0.00015484,2]
[399736715,1766645443888,-150.0,0.00015489,2]
[399736716,1766645443899,-207.98052348,0.00015494,2]
[399736717,1766645443909,-172.12623375,0.00015494,2]
[399736718,1766645443919,-150.03943629,0.00015494,2]
[399736719,1766645443930,-299.35190735,0.00015494,2]
[399736720,1766645443944,-150.0,0.000155,2]
[399736721,1766645443954,-150.0,0.000155,2]
[399736722,1766645443965,-150.0,0.00015503,2]
[399736723,1766645443975,-150.0,0.00015507,2]
[399736724,1766645443986,-207.98052348,0.00015511,2]
[399736725,1766645443996,-172.12623375,0.00015511,2]
[399736726,1766645444007,-150.03943629,0.00015511,2]
[399736727,1766645444017,-299.35190735,0.00015511,2]
[399736728,1766645444028,-150.0,0.00015525,2]
[399736729,1766645444039,-150.0,0.00015527,2]
[399736730,1766645444049,-207.98052348,0.00015528,2]
[399736731,1766645444059,-172.12623375,0.00015528,2]
[399736732,1766645444070,-150.03943629,0.00015528,2]
[399736733,1766645444079,-299.35190735,0.00015528,2]
[399736734,1766645444090,-150.0,0.00015542,2]
[399736735,1766645444100,-150.0,0.00015543,2]
[399736736,1766645444111,-207.98052348,0.00015545,2]
[399736737,1766645444121,-172.12623375,0.00015545,2]
[399736738,1766645444136,-150.03943629,0.00015545,2]
[399736739,1766645444147,-299.35190735,0.00015545,2]
[399736740,1766645444157,-150.0,0.00015549,2]
[399736741,1766645444169,-150.0,0.00015551,2]
[399736742,1766645444179,-150.0,0.00015556,2]
[399736743,1766645444190,-150.0,0.00015562,2]
[399736744,1766645444200,-207.98052348,0.00015562,2]
[399736745,1766645444211,-172.12623375,0.00015562,2]
[399736746,1766645444221,-150.03943629,0.00015562,2]
[399736747,1766645444231,-299.35190735,0.00015562,2]
[399736748,1766645444241,-500.0,0.00015568,2]
[399736749,1766645444252,-500.0,0.00015568,2]
[399736750,1766645444263,-521.79,0.00015568,2]
[399736751,1766645444274,-500.0,0.00015568,2]
[399736752,1766645444285,-500.0,0.00015568,2]
[399736753,1766645444295,-610.34,0.00015568,2]
[399736754,1766645444306,-500.0,0.00015568,2]
[399736755,1766645444317,-500.0,0.00015568,2]
[399736756,1766645444327,-58303.00077057,0.00015569,2]
[399736757,1766645444338,-150.0,0.00015571,2]
[399736758,1766645444348,-150.0,0.00015571,2]
[399736759,1766645444358,-150.0,0.00015575,2]
[399736760,1766645444368,-1600.0,0.00015576,2]
[399736761,1766645444378,-207.98052348,0.00015579,2]
[399736762,1766645444390,-172.12623375,0.00015579,2]
[399736763,1766645444400,-150.03943629,0.00015579,2]
[399736764,1766645444411,-299.35190735,0.00015579,2]
[399736765,1766645444421,-150.0,0.0001558,2]
[399736766,1766645444432,-150.0,0.00015585,2]
[399736767,1766645444442,-207.98052348,0.00015597,2]
[399736768,1766645444452,-172.12623375,0.00015597,2]
[399736769,1766645444462,-150.03943629,0.00015597,2]
[399736770,1766645444473,-299.35190735,0.00015597,2]
[399736771,1766645444483,-150.0,0.00015598,2]
[399736772,1766645444494,-150.0,0.00015599,2]
[399736773,1766645444508,-693.0,0.00015599,2]
[399736774,1766645444518,-207.98052348,0.00015614,2]
[399736775,1766645444528,-172.12623375,0.00015614,2]
[399736776,1766645444538,-150.03943629,0.00015614,2]
[399736777,1766645444549,-299.35190735,0.00015614,2]
[399736778,1766645444560,-150.0,0.00015614,2]
[399736779,1766645444570,-150.0,0.00015616,2]
[399736780,1766645444581,-150.0,0.00015623,2]
[399736781,1766645444592,-150.0,0.00015627,2]
[399736782,1766645444602,-207.98052348,0.00015631,2]
[399736783,1766645444612,-172.12623375,0.00015631,2]
[399736784,1766645444622,-150.03943629,0.00015631,2]
[399736785,1766645444633,-299.35190735,0.00015631,2]
[399736786,1766645444643,-150.0,0.00015635,2]
[399736787,1766645444653,-150.0,0.00015642,2]
[399736788,1766645444664,-150.0,0.00015645,2]
[399736789,1766645444674,-150.0,0.00015647,2]
[399736790,1766645444684,-207.98052348,0.00015648,2]
[399736791,1766645444703,-172.12623375,0.00015648,2]
[399736792,1766645444714,-150.03943629,0.00015648,2]
[399736793,1766645444724,-299.35190735,0.00015648,2]
[399736794,1766645444734,-150.0,0.00015653,2]
[399736795,1766645444744,-207.98052348,0.00015665,2]
[399736796,1766645444754,-172.12623375,0.00015665,2]
[399736797,1766645444763,-150.03943629,0.00015665,2]
[399736798,1766645444774,-299.35190735,0.00015665,2]
[399736799,1766645444785,-150.0,0.00015665,2]
[399736800,1766645444798,-150.0,0.0001567,2]
[399736801,1766645444809,-150.0,0.0001567,2]
[399736802,1766645444821,-150.0,0.00015671,2]
[399736803,1766645444835,-150.0,0.0001568,2]
[399736804,1766645444845,-207.98052348,0.00015682,2]
[399736805,1766645444855,-172.12623375,0.00015682,2]
[399736806,1766645444865,-150.03943629,0.00015682,2]
[399736807,1766645444876,-299.35190735,0.00015682,2]
[399736808,1766645444887,-150.0,0.00015689,2]
[399736809,1766645444906,-150.0,0.00015694,2]
[399736810,1766645444916,-207.98052348,0.00015699,2]
[399736811,1766645444926,-172.12623375,0.00015699,2]
[399736812,1766645444941,-150.03943629,0.00015699,2]
[399736813,1766645444962,-299.35190735,0.00015699,2]
[399736814,1766645444974,-268.5,0.00015706,2]
[399736815,1766645444984,-150.0,0.00015708,2]
[399736816,1766645444995,-150.0,0.00015712,2]
[399736817,1766645445005,-150.0,0.00015712,2]
[399736818,1766645445015,-150.0,0.00015712,2]
[399736819,1766645445025,-207.98052348,0.00015717,2]
[399736820,1766645445035,-172.12623375,0.00015717,2]
[399736821,1766645445045,-150.03943629,0.00015717,2]
[399736822,1766645445055,-299.35190735,0.00015717,2]
[399736823,1766645445065,-150.0,0.00015718,2]
[399736824,1766645445075,-150.0,0.00015726,2]
[399736825,1766645445086,-207.98052348,0.00015734,2]
[399736826,1766645445097,-172.12623375,0.00015734,2]
[399736827,1766645445107,-150.03943629,0.00015734,2]
[399736828,1766645445117,-299.35190735,0.00015734,2]
[399736829,1766645445128,-150.0,0.00015735,2]
[399736830,1766645445138,-1787.56,0.00015741,2]
[399736831,1766645445149,-150.0,0.00015742,2]
[399736832,1766645445159,-150.0,0.00015744,2]
[399736833,1766645445170,-150.0,0.00015745,2]
[399736834,1766645445180,-207.98052348,0.00015751,2]
[399736835,1766645445190,-172.12623375,0.00015751,2]
[399736836,1766645445200,-150.03943629,0.00015751,2]
[399736837,1766645445210,-299.35190735,0.00015751,2]
[399736838,1766645445220,-150.0,0.00015755,2]
[399736839,1766645445230,-150.0,0.00015763,2]
[399736840,1766645445240,-150.0,0.00015766,2]
[399736841,1766645445249,-207.98052348,0.00015768,2]
[399736842,1766645445259,-172.12623375,0.00015768,2]
[399736843,1766645445270,-150.03943629,0.00015768,2]
[399736844,1766645445280,-299.35190735,0.00015768,2]
[399736845,1766645445290,-282.0,0.00015774,2]
[399736846,1766645445300,-150.0,0.00015781,2]
[399736847,1766645445310,-150.0,0.00015783,2]
[399736848,1766645445320,-207.98052348,0.00015785,2]
[399736849,1766645445330,-172.12623375,0.00015785,2]
[399736850,1766645445340,-150.03943629,0.00015785,2]
[399736851,1766645445350,-299.35190735,0.00015785,2]
[399736852,1766645445361,-150.0,0.0001579,2]
[399736853,1766645445372,-150.0,0.00015797,2]
[399736854,1766645445382,-150.0,0.00015799,2]
[399736855,1766645445392,-207.98052348,0.00015802,2]
[399736856,1766645445403,-172.12623375,0.00015802,2]
[399736857,1766645445414,-150.03943629,0.00015802,2]
[399736858,1766645445425,-299.35190735,0.00015802,2]
[399736859,1766645445435,-150.0,0.0001581,2]
[399736860,1766645445446,-150.0,0.00015814,2]
[399736861,1766645445456,-150.0,0.00015817,2]
[399736862,1766645445466,-207.98052348,0.0001582,2]
[399736863,1766645445477,-172.12623375,0.0001582,2]
[399736864,1766645445487,-150.03943629,0.0001582,2]
[399736865,1766645445498,-299.35190735,0.0001582,2]
[399736866,1766645445509,-150.0,0.00015824,2]
[399736867,1766645445519,-3582.0,0.00015825,2]
[399736868,1766645445531,-150.0,0.00015836,2]
[399736869,1766645445541,-207.98052348,0.00015837,2]
[399736870,1766645445552,-172.12623375,0.00015837,2]
[399736871,1766645445562,-150.03943629,0.00015837,2]
[399736872,1766645445572,-299.35190735,0.00015837,2]
[399736873,1766645445583,-150.0,0.00015838,2]
[399736874,1766645445594,-150.0,0.0001584,2]
[399736875,1766645445606,-539.25,0.00015844,2]
[399736876,1766645445617,-207.98052348,0.00015854,2]
[399736877,1766645445628,-172.12623375,0.00015854,2]
[399736878,1766645445823,-150.03943629,0.00015854,2]
[399736879,1766645445846,-150.0,0.00015854,2]
[399736880,1766645445857,-150.0,0.00015854,2]
[399736881,1766645445867,-299.35190735,0.00015854,2]
[399736882,1766645445877,-150.0,0.00015854,2]
[399736883,1766645445887,-150.0,0.00015854,2]
[399736884,1766645445898,-150.0,0.00015862,2]
[399736885,1766645445907,-207.98052348,0.00015871,2]
[399736886,1766645445917,-172.12623375,0.00015871,2]
[399736887,1766645445928,-150.03943629,0.00015871,2]
[399736889,1766645445937,-299.35190735,0.00015871,2]
[399736891,1766645445947,-150.0,0.00015872,2]
[399736892,1766645445957,-539.25,0.00015874,2]
[399736893,1766645445967,-150.0,0.00015876,2]
[399736894,1766645445978,-150.0,0.00015882,2]
[399736895,1766645445988,-150.0,0.00015886,2]
[399736896,1766645445998,-207.98052348,0.00015888,2]
[399736897,1766645446008,-172.12623375,0.00015888,2]
[399736898,1766645446018,-150.03943629,0.00015888,2]
[399736899,1766645446028,-299.35190735,0.00015888,2]
[399736900,1766645446039,-150.0,0.0001589,2]
[399736901,1766645446051,-539.25,0.00015904,2]
[399736903,1766645446061,-207.98052348,0.00015905,2]
[399736904,1766645446071,-172.12623375,0.00015905,2]
[399736905,1766645446081,-150.03943629,0.00015905,2]
[399736906,1766645446091,-299.35190735,0.00015905,2]
[399736907,1766645446102,-150.0,0.00015909,2]
[399736908,1766645446112,-150.0,0.0001591,2]
[399736909,1766645446122,-150.0,0.00015913,2]
[399736910,1766645446132,-207.98052348,0.00015923,2]
[399736911,1766645446142,-172.12623375,0.00015923,2]
[399736912,1766645446152,-150.03943629,0.00015923,2]
[399736913,1766645446161,-299.35190735,0.00015923,2]
[399736914,1766645446171,-150.0,0.00015925,2]
[399736915,1766645446181,-150.0,0.00015925,2]
[399736916,1766645446191,-150.0,0.00015927,2]
[399736917,1766645446201,-150.0,0.00015934,2]
[399736918,1766645446211,-200.0,0.00015936,2]
[399736919,1766645446220,-200.0,0.00015936,2]
[399736920,1766645446230,-500.0,0.00015936,2]
[399736921,1766645446240,-207.98052348,0.0001594,2]
[399736922,1766645446250,-172.12623375,0.0001594,2]
[399736923,1766645446260,-150.03943629,0.0001594,2]
[399736924,1766645446270,-299.35190735,0.0001594,2]
[399736925,1766645446287,-150.0,0.00015941,2]
[399736926,1766645446310,-150.0,0.00015945,2]
[399736927,1766645446326,-207.98052348,0.00015957,2]
[399736928,1766645446336,-172.12623375,0.00015957,2]
[399736929,1766645446346,-150.03943629,0.00015957,2]
[399736930,1766645446355,-299.35190735,0.00015957,2]
[399736931,1766645446366,-150.0,0.00015958,2]
[399736932,1766645446375,-150.0,0.00015963,2]
[399736933,1766645446385,-150.0,0.00015967,2]
[399736934,1766645446396,-207.98052348,0.00015974,2]
[399736935,1766645446406,-172.12623375,0.00015974,2]
[399736936,1766645446417,-150.03943629,0.00015974,2]
[399736937,1766645446427,-299.35190735,0.00015974,2]
[399736938,1766645446437,-150.0,0.00015981,2]
[399736939,1766645446447,-150.0,0.00015982,2]
[399736940,1766645446456,-207.98052348,0.00015991,2]
[399736941,1766645446466,-172.12623375,0.00015991,2]
[399736942,1766645446476,-150.03943629,0.00015991,2]
[399736943,1766645446486,-299.35190735,0.00015991,2]
[399736944,1766645446496,-150.0,0.00015995,2]
[399736945,1766645446506,-500.0,0.00015999,2]
[399736946,1766645446517,-695.14,0.00015999,2]
[399736947,1766645446527,-500.0,0.00015999,2]
[399736948,1766645446536,-500.0,0.00015999,2]
[399736949,1766645446547,-500.0,0.00015999,2]
[399736950,1766645446557,-500.0,0.00015999,2]
[399736951,1766645446568,-500.0,0.00015999,2]
[399736952,1766645446580,-500.0,0.00015999,2]
[399736953,1766645446590,-150.0,0.00016,2]
[399736954,1766645446601,-150.0,0.00016003,2]
[399736955,1766645446611,-150.0,0.00016005,2]
[399736956,1766645446621,-150.0,0.00016006,2]
[399736957,1766645446631,-207.98052348,0.00016008,2]
[399736958,1766645446641,-172.12623375,0.00016008,2]
[399736959,1766645446653,-150.03943629,0.00016008,2]
[399736960,1766645446663,-299.35190735,0.00016008,2]
[399736961,1766645446673,-150.0,0.0001601,2]
[399736962,1766645446684,-1787.74,0.00016015,2]
[399736963,1766645446698,-150.0,0.00016018,2]
[399736964,1766645446709,-207.98052348,0.00016025,2]
[399736965,1766645446718,-172.12623375,0.00016025,2]
[399736966,1766645446729,-150.03943629,0.00016025,2]
[399736967,1766645446739,-299.35190735,0.00016025,2]
[399736968,1766645446749,-150.0,0.00016029,2]
[399736969,1766645446759,-150.0,0.00016037,2]
[399736970,1766645446769,-207.98052348,0.00016043,2]
[399736971,1766645446779,-172.12623375,0.00016043,2]
[399736972,1766645446791,-150.03943629,0.00016043,2]
[399736973,1766645446801,-299.35190735,0.00016043,2]
[399736974,1766645446811,-150.0,0.00016043,2]
[399736975,1766645446821,-150.0,0.00016052,2]
[399736976,1766645446831,-150.0,0.00016053,2]
[399736977,1766645446841,-150.0,0.00016055,2]
[399736978,1766645446852,-207.98052348,0.0001606,2]
[399736979,1766645446862,-172.12623375,0.0001606,2]
[399736980,1766645446873,-150.03943629,0.0001606,2]
[399736981,1766645446883,-299.35190735,0.0001606,2]
[399736982,1766645446894,-150.0,0.00016066,2]
[399736983,1766645446903,-150.0,0.00016072,2]
[399736984,1766645446914,-150.0,0.00016073,2]
[399736985,1766645446924,-309.29654756,0.00016075,2]
[399736986,1766645446934,-359.76179104,0.00016075,2]
[399736987,1766645446944,-207.98052348,0.00016077,2]
[399736988,1766645446954,-172.12623375,0.00016077,2]
[399736989,1766645446965,-150.03943629,0.00016077,2]
[399736990,1766645446975,-299.35190735,0.00016077,2]
[399736991,1766645446985,-150.0,0.00016077,2]
[399736992,1766645446995,-150.0,0.00016091,2]
[399736993,1766645447005,-150.0,0.00016092,2]